bitfinex/quotes_SOLUSD_20240902
["timestamp","ask_amount","ask_price","bid_price","bid_amount"]
[1725270916139,7.5891,131.77,131.71,7.5924]
[1725270916329,7.5891,131.77,131.72,7.5916]
[1725270916636,55.48100663,131.78,131.72,18.9783]
[1725270916839,7.5878,131.79,131.73,7.5912]
[1725270917027,7.589,131.77,131.72,26.5701]
[1725270917544,55.48100663,131.81,131.77,7.5889]
[1725270917835,28.00557997,131.8,131.7,6.5028]
[1725270918042,7.5884,131.78,131.73,7.5912]
[1725270918427,7.5884,131.78,131.72,7.5917]
[1725270918428,35.59397997,131.78,131.72,7.5917]
[1725270918635,7.5884,131.78,131.72,7.5917]
[1725270918845,35.59397997,131.78,131.72,7.5917]
[1725270919015,28.00557997,131.78,131.71,18.9797]
[1725270919322,55.48100663,131.82,131.7,44.4668]
[1725270919644,63.06710663,131.82,131.77,18.9719]
[1725270919938,7.5867,131.81,131.77,18.9719]
[1725270920124,35.59227997,131.81,131.77,18.9719]
[1725270920435,63.06710663,131.82,131.77,26.5606]
[1725270920741,7.5867,131.81,131.77,18.9719]
[1725270921731,7.5867,131.81,131.75,7.59]
[1725270921926,7.5862,131.82,131.76,7.5894]
[1725270922124,73.00557997,131.81,131.74,26.5673]
[1725270922437,7.5877,131.8,131.75,7.59]
[1725270922937,7.5884,131.78,131.71,18.9808]
[1725270923139,119.23987222,131.77,131.71,18.9808]
[1725270923315,126.82937222,131.77,131.71,18.9808]
[1725270923513,7.5896,131.76,131.71,18.9808]
[1725270923752,7.59,131.76,131.66,44.4625]
[1725270924039,53.82199225,131.8,131.75,7.5901]
[1725270924213,53.82199225,131.8,131.74,7.5906]
[1725270924413,53.82199225,131.8,131.72,18.9795]
[1725270924617,7.5869,131.81,131.76,7.5893]
[1725270924851,35.59247997,131.81,131.75,26.565]
[1725270925340,44.38837997,131.83,131.76,7.5895]
[1725270925821,7.5861,131.82,131.76,7.5895]
[1725270926023,7.585,131.84,131.77,18.971]
[1725270926234,7.5855,131.83,131.78,7.5883]
[1725270926551,81.82537222,131.83,131.78,7.5883]
[1725270927053,43.15887997,131.87,131.8,18.9679]
[1725270927231,74.23987222,131.85,131.75,6.2893]
[1725270927425,46.23429225,131.85,131.8,7.5872]
[1725270927925,25.3741,131.9,131.78,37.9404]
[1725270927926,7.582,131.9,131.78,37.9404]
[1725270928132,28.00557997,131.93,131.87,7.583]
[1725270928423,28.00557997,131.93,131.85,18.9602]
[1725270928424,7.5792,131.94,131.88,18.9564]
[1725270928747,28.00557997,131.93,131.84,18.9612]
[1725270929136,28.00557997,131.91,131.84,18.9612]
[1725270929332,7.5819,131.9,131.84,7.5849]
[1725270929535,35.58767997,131.89,131.83,7.5853]
[1725270930153,46.23429225,131.91,131.78,7.5883]
[1725270930154,7.5849,131.84,131.78,7.5883]
[1725270930336,46.23429225,131.85,131.79,18.9695]
[1725270930650,46.23429225,131.85,131.81,7.5866]
[1725270930822,91.23429225,131.88,131.79,18.9695]
[1725270931149,73.00557997,131.87,131.79,18.9695]
[1725270931521,28.00557997,131.9,131.82,18.965]
[1725270932027,35.58637997,131.92,131.86,7.5837]
[1725270932242,35.58637997,131.92,131.87,7.583]
[1725270932243,74.23987222,131.92,131.87,7.583]
[1725270932441,36.20097452,131.92,131.88,7.5823]
[1725270932646,35.58527997,131.94,131.89,7.582]
[1725270932849,28.00557997,131.94,131.89,7.582]
[1725270933155,28.00557997,131.97,131.9,7.5814]
[1725270933647,35.58357997,131.97,131.91,7.5808]
[1725270934026,28.00557997,131.97,131.93,7.5793]
[1725270934228,28.00557997,131.97,131.91,18.9513]
[1725270935148,28.00557997,131.97,131.86,37.917]
[1725270935149,7.5803,131.93,131.87,7.5831]
[1725270935447,7.5792,131.94,131.86,18.9581]
[1725270935757,35.58417997,131.95,131.89,7.5819]
[1725270936257,35.58417997,131.95,131.9,7.5814]
[1725270936438,35.58417997,131.95,131.89,7.582]
[1725270936634,46.23429225,131.96,131.9,7.5813]
[1725270936635,53.81229225,131.96,131.9,7.5813]
[1725270936941,28.00557997,131.97,131.92,7.5803]
[1725270937145,35.58307997,131.97,131.92,7.5803]
[1725270937378,35.58307997,131.97,131.91,7.5808]
[1725270937740,35.58307997,131.97,131.9,26.5336]
[1725270937741,7.5785,131.96,131.9,26.5336]
[1725270937927,35.58437997,131.95,131.9,18.9524]
[1725270938256,7.5785,131.96,131.9,26.5338]
[1725270938435,73.00557997,131.95,131.9,26.5338]
[1725270938750,73.00557997,131.95,131.86,37.9171]
[1725270938751,28.00557997,131.97,131.86,37.9174]
[1725270938952,7.578,131.96,131.91,7.5807]
[1725270939156,28.00557997,131.97,131.86,37.9174]
[1725270939449,8.4242374,132.0,131.94,7.5791]
[1725270939655,0.8485374,132.0,131.94,7.5791]
[1725270939834,8.4242374,132.0,131.94,7.5791]
[1725270940254,0.8485374,132.0,131.93,18.9481]
[1725270940459,28.00557997,131.99,131.93,18.9481]
[1725270940843,28.00557997,131.99,131.93,26.5278]
[1725270940844,35.58227997,131.99,131.93,26.5278]
[1725270941053,0.8485374,132.0,131.95,7.5785]
[1725270941446,8.4248374,132.0,131.94,7.579]
[1725270941631,7.5764,131.99,131.94,7.5791]
[1725270942254,28.00557997,131.97,131.86,37.9174]
[1725270942445,28.00557997,131.97,131.84,6.665]
[1725270942446,74.23987222,131.95,131.84,6.665]
[1725270942646,7.5808,131.92,131.86,18.9592]
[1725270942836,7.5808,131.92,131.86,26.5424]
[1725270943039,7.581,131.91,131.86,26.5424]
[1725270943653,28.00557997,131.93,131.86,18.9592]
[1725270943971,35.58537997,131.93,131.87,7.5831]
[1725270944258,35.58667997,131.91,131.86,26.5429]
[1725270944457,35.58667997,131.91,131.86,18.9592]
[1725270944656,46.23429225,131.92,131.87,7.5832]
[1725270944954,46.23429225,131.92,131.86,18.9592]
[1725270945141,53.81519225,131.92,131.86,26.5427]
[1725270945339,35.58647997,131.91,131.86,18.9592]
[1725270945741,7.5816,131.9,131.82,18.9639]
[1725270945941,7.5821,131.89,131.84,7.5849]
[1725270946547,7.5826,131.88,131.82,18.9639]
[1725270946744,74.23987222,131.89,131.82,26.5499]
[1725270946745,35.58887997,131.87,131.82,26.5499]
[1725270946943,70.616,131.94,131.78,18.9696]
[1725270946944,28.00557997,131.85,131.78,18.9696]
[1725270947150,7.586,131.83,131.78,26.5579]
[1725270947468,74.23987222,131.83,131.74,18.9756]
[1725270947758,7.5867,131.81,131.74,18.9756]
[1725270948065,28.00557997,131.81,131.74,18.9756]
[1725270948238,45.0,131.8,131.74,18.9756]
[1725270948441,45.0,131.8,131.7,18.9821]
[1725270948442,28.00557997,131.79,131.7,18.9821]
[1725270948763,7.5895,131.76,131.71,7.5924]
[1725270948948,7.5889,131.77,131.71,7.5924]
[1725270949146,23.0982,131.79,131.7,18.9821]
[1725270949347,28.00557997,131.79,131.73,18.9779]
[1725270949574,7.5889,131.77,131.69,18.983]
[1725270950059,28.00557997,131.77,131.69,26.5761]
[1725270950260,7.5919,131.72,131.67,7.5947]
[1725270950435,7.5913,131.73,131.67,7.5947]
[1725270950643,61.55133529,131.76,131.69,7.5935]
[1725270951137,61.55133529,131.76,131.68,18.9851]
[1725270951355,45.0,131.78,131.68,18.9851]
[1725270951546,7.5895,131.77,131.71,7.5918]
[1725270951953,28.00557997,131.77,131.72,7.5917]
[1725270952156,45.0,131.78,131.72,7.5917]
[1725270952342,44.09787997,131.84,131.71,37.9618]
[1725270952550,35.59177997,131.82,131.75,7.5895]
[1725270952760,28.00557997,131.83,131.77,7.5887]
[1725270952971,7.5878,131.79,131.74,18.9764]
[1725270953267,35.59337997,131.79,131.74,26.567]
[1725270953444,7.5878,131.79,131.74,26.567]
[1725270953749,35.59277997,131.81,131.74,26.567]
[1725270954064,28.00557997,131.79,131.74,18.9764]
[1725270954266,7.5898,131.76,131.7,18.982]
[1725270954450,28.00557997,131.74,131.7,18.982]
[1725270954854,28.00557997,131.72,131.66,18.9872]
[1725270955052,7.5937,131.69,131.62,26.5897]
[1725270955248,7.5942,131.68,131.62,26.5902]
[1725270955448,7.5942,131.68,131.63,7.5968]
[1725270955767,83.52801526,131.7,131.63,7.5967]
[1725270955768,7.5939,131.69,131.63,7.5967]
[1725270956356,7.5939,131.69,131.64,7.5962]
[1725270956564,7.5929,131.71,131.65,7.5958]
[1725270958977,55.52243529,131.73,131.65,7.5958]
[1725270958978,35.59897997,131.7,131.65,7.5958]
[1725270959181,28.00557997,131.72,131.65,7.5958]
[1725270959363,45.0,131.71,131.65,7.5958]
[1725270959751,28.00557997,131.72,131.66,7.5951]
[1725270959960,55.52243529,131.73,131.67,7.5946]
[1725270959961,7.5918,131.73,131.67,7.5946]
[1725270960279,35.59737997,131.73,131.67,7.5946]
[1725270960579,28.00557997,131.77,131.72,7.5917]
[1725270960751,28.00557997,131.77,131.71,18.981]
[1725270960947,28.00557997,131.75,131.71,18.981]
[1725270961362,35.59577997,131.75,131.71,18.981]
[1725270961565,28.00557997,131.75,131.69,7.5935]
[1725270961761,28.00557997,131.75,131.68,7.5941]
[1725270962172,28.00557997,131.75,131.67,18.9854]
[1725270962552,35.59507997,131.77,131.7,18.9824]
[1725270962748,35.59507997,131.77,131.64,37.9807]
[1725270962749,83.52801526,131.79,131.75,7.5901]
[1725270962946,28.00557997,131.79,131.74,7.5906]
[1725270963356,28.00557997,131.79,131.75,7.5901]
[1725270963680,28.00557997,131.8,131.75,7.5901]
[1725270963884,28.00557997,131.78,131.73,7.5908]
[1725270964184,7.5893,131.77,131.72,18.9782]
[1725270964390,35.59517997,131.76,131.72,18.9782]
[1725270964588,7.589,131.77,131.72,26.5698]
[1725270965060,63.11073529,131.79,131.73,7.5908]
[1725270965388,83.52801526,131.82,131.76,7.5895]
[1725270965563,63.10853529,131.82,131.74,18.9754]
[1725270965757,50.32187997,131.84,131.78,7.5883]
[1725270966085,50.32187997,131.84,131.76,18.9725]
[1725270966387,15.8842,131.84,131.76,18.9725]
[1725270966689,15.8842,131.84,131.69,61.62483529]
[1725270966690,35.59327997,131.8,131.74,7.5902]
[1725270966986,7.5879,131.79,131.74,7.5902]
[1725270967189,28.00557997,131.76,131.69,18.9838]
[1725270967490,28.00557997,131.76,131.72,7.5917]
[1725270967682,28.00557997,131.76,131.69,18.9838]
[1725270967879,83.52801526,131.76,131.69,18.9838]
[1725270968080,45.0,131.75,131.69,18.9838]
[1725270968760,28.00557997,131.72,131.65,25.2712]
[1725270969077,28.00557997,131.72,131.65,26.5836]
[1725270969078,35.59787997,131.72,131.65,26.5836]
[1725270969278,35.59787997,131.72,131.66,7.595]
[1725270969279,7.5923,131.72,131.66,7.595]
[1725270969466,35.59787997,131.72,131.66,7.595]
[1725270970093,55.52243529,131.73,131.65,18.9883]
[1725270970094,28.00557997,131.69,131.65,18.9883]
[1725270970286,28.00557997,131.69,131.62,18.994]
[1725270970589,6.6516,131.71,131.64,7.5959]
[1725270970590,42.24977997,131.71,131.64,7.5959]
[1725270970886,42.24977997,131.71,131.6,6.1165]
[1725270970887,28.00557997,131.69,131.6,6.1165]
[1725270971067,28.00557997,131.69,131.57,16.4779]
[1725270971068,7.5948,131.67,131.61,18.9943]
[1725270971878,7.5948,131.67,131.61,26.5919]
[1725270972197,18.9797,131.72,131.57,16.4779]
[1725270972198,83.52801526,131.73,131.65,7.5958]
[1725270972396,35.59877997,131.7,131.64,26.5871]
[1725270972803,7.5935,131.69,131.64,26.5871]
[1725270973964,7.5929,131.71,131.64,26.5871]
[1725270974165,28.00557997,131.74,131.68,7.5939]
[1725270974365,28.00557997,131.74,131.67,18.9863]
[1725270974366,7.5913,131.73,131.67,18.9863]
[1725270974680,7.5913,131.73,131.67,26.5807]
[1725270975072,7.5913,131.73,131.68,7.5941]
[1725270975270,28.00557997,131.74,131.69,7.5935]
[1725270975592,21.7881,131.8,131.75,7.5899]
[1725270975764,15.2257,131.8,131.67,37.9714]
[1725270975966,28.00557997,131.82,131.78,7.5881]
[1725270976288,7.5855,131.83,131.77,7.5889]
[1725270976596,7.5869,131.81,131.76,18.9734]
[1725270976781,28.00557997,131.8,131.76,18.9734]
[1725270976983,28.00557997,131.78,131.72,18.9784]
[1725270977191,7.5885,131.78,131.73,7.5911]
[1725270977491,7.5885,131.78,131.72,18.9784]
[1725270977685,35.59407997,131.78,131.73,7.5912]
[1725270977993,7.589,131.77,131.72,26.5702]
[1725270978366,28.00557997,131.8,131.72,26.5702]
[1725270978367,28.00557997,131.82,131.72,18.9784]
[1725270978780,7.5867,131.81,131.75,7.5895]
[1725270978971,7.586,131.83,131.75,18.9752]
[1725270979173,7.586,131.83,131.77,7.5884]
[1725270979390,15.0093,131.85,131.78,18.9708]
[1725270979590,28.00557997,131.88,131.83,7.5852]
[1725270979801,28.00557997,131.88,131.81,18.9663]
[1725270979974,7.582,131.9,131.85,7.5842]
[1725270980170,28.00557997,131.94,131.87,7.583]
[1725270980369,35.58597997,131.92,131.85,7.5839]
[1725270981100,28.00557997,131.92,131.86,7.5837]
[1725270981295,7.5798,131.93,131.87,7.5831]
[1725270981509,28.00557997,131.9,131.84,18.9622]
[1725270981674,28.00557997,131.87,131.8,18.9674]
[1725270981874,61.8367,131.96,131.8,18.9674]
[1725270981875,28.00557997,131.89,131.8,18.9674]
[1725270982100,28.00557997,131.93,131.84,18.9623]
[1725270983194,7.5799,131.93,131.84,18.9623]
[1725270983395,7.58,131.93,131.87,7.583]
[1725270983593,7.5803,131.92,131.86,7.5837]
[1725270983793,28.00557997,131.91,131.84,18.9623]
[1725270983996,7.5821,131.89,131.84,18.9623]
[1725270984177,28.00557997,131.91,131.84,26.5472]
[1725270984379,28.00557997,131.89,131.8,18.9671]
[1725270984597,28.00557997,131.87,131.8,18.9671]
[1725270985109,45.0,131.88,131.8,18.9671]
[1725270985401,7.5815,131.9,131.84,7.5849]
[1725270985579,45.0,131.89,131.84,7.5849]
[1725270985779,7.5815,131.9,131.85,7.5843]
[1725270986286,7.5815,131.9,131.83,18.9626]
[1725270986287,35.58787997,131.89,131.83,26.5476]
[1725270986489,28.00557997,131.87,131.79,25.5531]
[1725270986704,55.52243529,131.91,131.75,25.5088]
[1725270986705,28.00557997,131.85,131.75,25.5088]
[1725270987012,28.00557997,131.85,131.78,7.5882]
[1725270987176,28.00557997,131.87,131.78,18.9708]
[1725270987377,35.58927997,131.87,131.8,7.5871]
[1725270987600,28.00557997,131.85,131.8,7.5871]
[1725270987807,52.5838,131.86,131.8,7.5871]
[1725270988004,28.00557997,131.85,131.8,7.5871]
[1725270988180,45.0,131.84,131.79,7.5877]
[1725270988799,28.00557997,131.87,131.81,18.9659]
[1725270989279,28.00557997,131.87,131.82,7.5855]
[1725270989484,28.00557997,131.87,131.81,26.5525]
[1725270989485,35.58877997,131.87,131.81,26.5525]
[1725270989705,7.5838,131.86,131.81,26.5525]
[1725270990009,7.5838,131.86,131.81,18.9659]
[1725270990586,22.5759,131.89,131.77,18.9713]
[1725270990587,35.59007997,131.85,131.77,18.9713]
[1725270990793,35.58927997,131.87,131.8,18.9678]
[1725270990996,80.58937997,131.86,131.8,18.9678]
[1725270991384,35.58857997,131.88,131.81,7.5861]
[1725270991583,22.5759,131.89,131.75,44.4833]
[1725270991902,35.58817997,131.88,131.83,18.9634]
[1725270993114,28.00557997,131.88,131.83,26.5487]
[1725270993404,35.58817997,131.88,131.83,26.5487]
[1725270993580,35.58817997,131.88,131.83,18.9634]
[1725270993779,35.58817997,131.88,131.78,18.9702]
[1725270993780,28.00557997,131.88,131.78,18.9702]
[1725270993982,28.00557997,131.86,131.78,18.9702]
[1725270994208,35.58937997,131.86,131.8,7.5869]
[1725270994393,7.5832,131.87,131.82,7.5859]
[1725270994598,7.5832,131.87,131.81,18.9666]
[1725270994799,28.00557997,131.91,131.8,55.52243529]
[1725270995107,6.0938,131.94,131.8,55.52243529]
[1725270995108,6.0938,131.94,131.9,7.5809]
[1725270995311,28.00557997,131.95,131.9,7.5809]
[1725270995491,28.00557997,131.95,131.88,7.5822]
[1725270995808,28.00557997,131.93,131.88,7.5822]
[1725270996391,28.00557997,131.93,131.87,18.958]
[1725270996592,7.5804,131.92,131.87,26.5411]
[1725270998207,35.58717997,131.9,131.85,7.5838]
[1725270998393,28.00557997,131.94,131.84,37.923]
[1725270999310,35.58477997,131.94,131.89,7.582]
[1725270999819,28.00557997,131.94,131.9,7.5814]
[1725270999992,28.00557997,131.94,131.89,7.582]
[1725271000196,35.58507997,131.94,131.89,7.582]
[1725271000694,35.58507997,131.94,131.88,7.5825]
[1725271000909,43.74447997,131.97,131.84,37.923]
[1725271001194,23.3164,131.97,131.91,26.5318]
[1725271001395,28.00557997,131.99,131.93,18.9481]
[1725271001621,28.00557997,131.99,131.93,26.5273]
[1725271001784,7.5773,131.98,131.93,18.9481]
[1725271001990,35.58307997,131.97,131.92,7.5803]
[1725271002291,7.5781,131.96,131.9,26.5344]
[1725271002893,28.00557997,131.95,131.89,7.582]
[1725271003094,45.0,131.96,131.89,7.582]
[1725271003295,35.58467997,131.95,131.89,7.582]
[1725271003517,28.00557997,131.93,131.88,7.5825]
[1725271003689,28.00557997,131.93,131.87,7.5831]
[1725271003995,52.5803,131.92,131.87,7.5831]
[1725271004192,35.58767997,131.89,131.83,18.9637]
[1725271004391,7.5815,131.9,131.84,7.5845]
[1725271004591,80.58767997,131.89,131.83,26.5491]
[1725271005004,7.5815,131.9,131.83,18.9637]
[1725271005204,80.58767997,131.89,131.83,26.5488]
[1725271005710,16.2201,131.91,131.79,37.9379]
[1725271005914,28.00557997,131.98,131.84,6.3699]
[1725271006127,6.3732,131.99,131.94,7.5789]
[1725271006416,0.8485374,132.0,131.92,55.52243529]
[1725271006723,0.8485374,132.0,131.93,1.51391269]
[1725271006913,0.8485374,132.0,131.93,18.9483]
[1725271007221,0.8485374,132.0,131.93,18.948]
[1725271007394,0.8485374,132.0,131.9,61.89233529]
[1725271007592,0.8485374,132.0,131.97,18.9432]
[1725271008104,0.8485374,132.0,131.93,18.9492]
[1725271008311,0.8485374,132.0,131.93,26.5288]
[1725271008487,0.8485374,132.0,131.89,18.9548]
[1725271008814,28.85411737,132.0,131.89,18.9548]
[1725271009198,0.8485374,132.0,131.94,7.579]
[1725271009412,28.00557997,131.97,131.86,6.1368]
[1725271009587,7.5794,131.94,131.88,18.9561]
[1725271009789,7.5784,131.96,131.88,18.9561]
[1725271010011,7.581,131.91,131.83,18.9637]
[1725271010184,28.00557997,131.92,131.83,18.9637]
[1725271010388,7.5817,131.9,131.81,6.1253]
[1725271010601,45.0,131.91,131.83,7.5854]
[1725271011018,7.5805,131.92,131.85,7.584]
[1725271011189,35.58517997,131.94,131.86,7.5832]
[1725271011399,16.2509,131.98,131.89,7.5819]
[1725271011603,16.2509,131.98,131.88,26.5374]
[1725271011604,7.5781,131.96,131.88,26.5374]
[1725271011798,28.85411737,132.0,131.92,18.9503]
[1725271012011,8.4245374,132.0,131.93,7.5796]
[1725271012213,0.8485374,132.0,131.95,18.9453]
[1725271012390,0.8485374,132.0,131.95,26.5235]
[1725271012586,0.8485374,132.0,131.97,7.5774]
[1725271012787,0.8485374,132.0,131.95,18.9453]
[1725271013188,0.8485374,132.0,131.96,7.5777]
[1725271013391,0.8485374,132.0,131.97,7.5772]
[1725271013610,0.8485374,132.0,131.95,18.9453]
[1725271013791,28.85411737,132.0,131.91,18.952]
[1725271013992,28.00557997,131.99,131.91,18.952]
[1725271014422,0.8485374,132.0,131.91,18.952]
[1725271014602,0.8485374,132.0,131.92,1.51404612]
[1725271014800,0.8485374,132.0,131.95,18.9464]
[1725271015512,0.8485374,132.0,131.95,26.5249]
[1725271015691,0.8485374,132.0,131.96,7.5778]
[1725271015890,0.8485374,132.0,131.95,18.9464]
[1725271016218,0.8485374,132.0,131.91,18.9521]
[1725271016514,0.8485374,132.0,131.94,18.947]
[1725271016917,0.8485374,132.0,131.95,7.5785]
[1725271017301,28.85411737,132.0,131.95,7.5785]
[1725271017519,0.8485374,132.0,131.96,7.578]
[1725271017721,0.8485374,132.0,131.94,26.5257]
[1725271017909,0.8485374,132.0,131.94,18.947]
[1725271018222,0.8485374,132.0,131.95,7.5785]
[1725271018797,0.8485374,132.0,131.94,18.947]
[1725271019001,0.8485374,132.0,131.94,0.57382358]
[1725271019304,0.8485374,132.0,131.98,7.5767]
[1725271019492,0.8485374,132.0,131.97,18.9431]
[1725271020113,0.8485374,132.0,131.97,26.5204]
[1725271020397,0.8485374,132.0,131.97,18.9431]
[1725271020724,0.8485374,132.0,131.89,18.9545]
[1725271020725,28.00557997,131.98,131.89,18.9545]
[1725271021018,0.8485374,132.0,131.85,48.42602231]
[1725271021219,0.8485374,132.0,131.95,7.5784]
[1725271021425,0.8485374,132.0,131.85,53.42602231]
[1725271021621,0.8485374,132.0,131.95,18.9456]
[1725271021818,0.8485374,132.0,131.9,37.9069]
[1725271021996,0.8485374,132.0,131.98,26.5185]
[1725271022193,0.8485374,132.0,131.98,18.9417]
[1725271022413,0.8485374,132.0,131.94,18.947]
[1725271022623,0.8485374,132.0,131.97,7.5774]
[1725271023225,0.8485374,132.0,131.99,7.5763]
[1725271023719,0.8485374,132.0,131.97,18.9433]
[1725271023720,0.8485374,132.0,131.95,7.5781]
[1725271023936,0.8485374,132.0,131.97,7.5769]
[1725271024099,0.8485374,132.0,131.96,18.9446]
[1725271024100,0.8485374,132.0,131.98,7.5768]
[1725271024303,0.8485374,132.0,131.96,26.5223]
[1725271024504,0.8485374,132.0,131.96,18.9446]
[1725271025626,28.00557997,131.99,131.92,18.9495]
[1725271025801,0.8485374,132.0,131.96,7.5779]
[1725271026007,0.8485374,132.0,131.95,18.9457]
[1725271026207,7.5763,131.99,131.93,7.5797]
[1725271026414,36.43031737,132.0,131.93,7.5792]
[1725271026610,0.8485374,132.0,131.99,45.4579]
[1725271026818,0.8485374,132.13,132.01,6.554]
[1725271027025,0.8485374,132.13,132.02,20.0]
[1725271027330,0.8485374,132.13,132.02,75.52243529]
[1725271028124,0.8485374,132.13,132.09,18.9262]
[1725271028330,0.3485374,132.13,132.12,7.5688]
[1725271028701,0.3485374,132.13,132.11,7.5694]
[1725271029323,0.3485374,132.13,132.09,18.9262]
[1725271029324,0.3485374,132.13,132.1,7.5698]
[1725271029631,0.3485374,132.13,132.05,18.931]
[1725271030111,0.3485374,132.13,132.11,18.9231]
[1725271030520,79.43063529,132.22,132.1,7.5695]
[1725271030521,0.8485374,132.26,132.18,18.913]
[1725271030713,28.85411737,132.26,132.19,7.5644]
[1725271030917,28.00557997,132.24,132.19,7.5644]
[1725271031333,28.00557997,132.23,132.16,7.5664]
[1725271031541,35.56727997,132.25,132.17,7.5658]
[1725271031735,28.00557997,132.22,132.16,18.9154]
[1725271031942,0.8485374,132.26,132.11,18.9227]
[1725271031943,28.00557997,132.2,132.11,18.9227]
[1725271032117,35.56847997,132.23,132.14,7.5674]
[1725271032319,28.00557997,132.21,132.14,7.5674]
[1725271032518,7.5638,132.21,132.14,7.5674]
[1725271032741,28.00557997,132.21,132.15,7.567]
[1725271033425,7.5624,132.24,132.14,18.9181]
[1725271033624,8.4097374,132.26,132.18,7.5652]
[1725271033818,0.8485374,132.26,132.23,7.5624]
[1725271034022,0.8485374,132.26,132.21,7.5632]
[1725271034219,0.8485374,132.26,132.2,18.9095]
[1725271034529,0.8485374,132.26,132.24,7.5617]
[1725271034733,0.8485374,132.26,132.2,18.9095]
[1725271034933,0.8485374,132.26,132.21,1.11780666]
[1725271035151,0.8485374,132.26,132.2,18.9095]
[1725271035440,28.00557997,132.25,132.18,7.5653]
[1725271035639,0.8485374,132.26,132.16,18.916]
[1725271035943,7.5626,132.23,132.16,26.4821]
[1725271036247,28.00557997,132.21,132.12,18.9215]
[1725271036416,73.00557997,132.2,132.08,74.44953529]
[1725271036623,35.57107997,132.18,132.09,0.57911756]
[1725271036916,28.00557997,132.19,132.11,18.9229]
[1725271037153,7.5654,132.18,132.12,7.5686]
[1725271037344,28.00557997,132.19,132.13,7.5681]
[1725271037845,28.00557997,132.19,132.11,18.9229]
[1725271038018,7.5655,132.18,132.11,26.4923]
[1725271038216,28.00557997,132.19,132.11,7.5693]
[1725271038217,7.5665,132.17,132.11,7.5693]
[1725271038422,28.00557997,132.19,132.1,26.4935]
[1725271038751,5.8485374,132.26,132.18,7.5648]
[1725271038752,28.85411737,132.26,132.18,7.5648]
[1725271039064,28.00557997,132.24,132.17,7.5659]
[1725271039229,28.00557997,132.24,132.14,6.4996]
[1725271039230,7.5614,132.25,132.19,26.4762]
[1725271039431,0.8485374,132.26,132.23,7.5623]
[1725271039649,0.8485374,132.26,132.22,18.9069]
[1725271040357,28.85411737,132.26,132.18,18.9127]
[1725271040534,28.85411737,132.26,132.15,55.52243529]
[1725271040736,28.85411737,132.26,132.21,18.9086]
[1725271040935,36.41491737,132.26,132.21,18.9086]
[1725271041464,28.85411737,132.26,132.21,26.4722]
[1725271041771,0.8485374,132.26,132.22,7.563]
[1725271042065,0.8485374,132.26,132.21,26.4723]
[1725271042432,0.8485374,132.26,132.17,18.9147]
[1725271042632,0.8485374,132.26,132.16,37.8307]
[1725271042832,0.8485374,132.26,132.21,7.5636]
[1725271043258,35.56767997,132.24,132.18,7.5654]
[1725271043457,28.85411737,132.26,132.16,18.9156]
[1725271043760,45.0,132.25,132.16,18.9156]
[1725271043939,7.5616,132.25,132.16,18.9156]
[1725271044257,28.85411737,132.26,132.16,18.9156]
[1725271044557,52.5617,132.25,132.17,0.62338183]
[1725271044756,7.5617,132.25,132.19,7.5648]
[1725271044977,8.4094374,132.26,132.2,7.5642]
[1725271045160,7.5619,132.25,132.19,26.4764]
[1725271045469,8.4095374,132.26,132.19,18.9121]
[1725271045630,7.5614,132.25,132.2,7.5639]
[1725271045833,0.8485374,132.26,132.23,7.5622]
[1725271046267,0.8485374,132.26,132.22,18.9072]
[1725271046431,0.8485374,132.26,132.23,0.62265148]
[1725271046630,0.8485374,132.26,132.25,26.4649]
[1725271047466,0.8485374,132.26,132.25,18.9035]
[1725271047665,0.8485374,132.26,132.21,18.908]
[1725271048032,28.85411737,132.26,132.21,18.908]
[1725271048261,28.85411737,132.26,132.17,18.9136]
[1725271048459,28.85411737,132.26,132.15,37.8341]
[1725271048460,0.8485374,132.26,132.15,37.8341]
[1725271048776,7.5638,132.21,132.16,7.5664]
[1725271048943,7.5631,132.22,132.17,7.5659]
[1725271049141,28.00557997,132.22,132.17,7.5659]